bitfinex-derivatives/quotes_SOLF0:USTF0_20250312
["timestamp","ask_amount","ask_price","bid_price","bid_amount"]
[1741788287325,0.05239671,125.68,125.65,0.05629955]
[1741788288225,45.21827333,125.77,125.65,48.31629955]
[1741788288421,4.28921413,125.75,125.67,53.29207577]
[1741788288731,40.89707333,125.77,125.7,53.29207577]
[1741788288933,40.89707333,125.77,125.7,101.55207577]
[1741788289429,0.05882461,125.75,125.72,8.00840238]
[1741788289626,0.05882461,125.75,125.72,0.05370238]
[1741788290531,7.9521,125.77,125.72,0.05370238]
[1741788290828,40.89707333,125.78,125.72,0.05370238]
[1741788291127,26.94590812,125.79,125.76,53.29207577]
[1741788291339,13.79750812,125.79,125.78,53.29207577]
[1741788291632,5.16130812,125.79,125.78,61.24307577]
[1741788291821,5.16130812,125.79,125.78,53.29207577]
[1741788292021,5.16130812,125.79,125.77,286.77987859]
[1741788292427,5.16130812,125.79,125.77,238.81987859]
[1741788292625,0.05718484,125.8,125.77,238.81987859]
[1741788293432,0.05718484,125.8,125.79,7.9503]
[1741788293926,8.484e-05,125.8,125.79,15.8903]
[1741788294226,8.484e-05,125.8,125.79,7.9503]
[1741788294438,148.29115536,125.86,125.79,7.94]
[1741788294628,148.29115536,125.86,125.82,53.29207577]
[1741788294828,148.29115536,125.86,125.82,61.24007577]
[1741788295025,148.29115536,125.86,125.82,53.29207577]
[1741788295433,280.86895983,125.87,125.85,53.29207577]
[1741788295634,242.80585983,125.87,125.86,238.68]
[1741788295928,15.79315741,125.87,125.86,238.68]
[1741788296938,0.05681025,125.87,125.86,238.68]
[1741788297433,0.05681025,125.87,125.83,0.06102627]
[1741788298429,0.05681025,125.87,125.84,48.46]
[1741788299028,0.05681025,125.87,125.86,61.23797577]
[1741788299535,3.9514,125.97,125.86,61.23207577]
[1741788299830,7.9406,125.95,125.9,7.9428]
[1741788300035,3.9514,125.97,125.9,286.92]
[1741788300428,7.9411,125.94,125.9,286.92]
[1741788300629,3.9514,125.97,125.9,286.92]
[1741788300933,0.05927582,125.95,125.92,0.05866413]
[1741788301138,0.05927582,125.95,125.94,7.9409]
[1741788301338,0.05927582,125.95,125.94,56.3209]
[1741788301534,0.05927582,125.95,125.92,0.05866413]
[1741788302438,7.9415,125.93,125.92,0.05866413]
[1741788302638,101.85135159,125.95,125.9,238.5]
[1741788302837,4.1005,125.94,125.9,238.5]
[1741788303136,0.05927582,125.95,125.9,291.79207577]
[1741788303335,0.05927582,125.95,125.9,238.5]
[1741788303833,0.05927582,125.95,125.91,0.05522488]
[1741788304237,7.9427,125.92,125.91,0.05522488]
[1741788304433,0.05927582,125.95,125.91,0.05522488]
[1741788304626,7.9413,125.94,125.91,0.05522488]
[1741788305238,0.05927582,125.95,125.91,0.05522488]
[1741788305934,4.2606,126.05,125.94,53.29207577]
[1741788306139,61.96707577,126.1,125.99,53.29207577]
[1741788306340,61.96707577,126.1,126.0,238.38]
[1741788306734,7.9321,126.08,126.0,340.03207577]
[1741788306936,8.675,126.1,126.0,286.74]
[1741788307133,0.05602533,126.05,126.04,7.9346]
[1741788307340,0.05602533,126.05,126.03,0.05811244]
[1741788307535,53.29207577,126.13,126.04,7.9346]
[1741788307742,0.05284338,126.05,126.03,0.05990298]
[1741788307936,53.29207577,126.11,126.01,48.34]
[1741788308137,0.05484146,126.05,126.03,0.05990087]
[1741788308644,53.29207577,126.09,126.0,238.38]
[1741788308942,0.05486095,126.05,126.03,0.05091161]
[1741788309144,0.05486095,126.05,126.0,238.38]
[1741788309344,8.6843,126.06,126.0,238.38]
[1741788309539,4.3599,126.06,126.0,291.67207577]
[1741788310240,4.3244,126.1,126.02,53.29207577]
[1741788310443,4.3599,126.13,126.04,53.29207577]
[1741788310644,0.0568307,126.07,126.02,53.29207577]
[1741788310844,101.61207577,126.12,126.0,291.67207577]
[1741788311042,0.05243718,126.06,126.03,0.05019799]
[1741788311348,0.05243718,126.06,125.94,246.2005]
[1741788311349,53.29207577,126.04,125.94,246.2005]
[1741788311537,53.29207577,126.02,125.94,238.26]
[1741788311844,48.54,126.01,125.94,238.26]
[1741788312440,0.05079049,125.99,125.96,0.05298742]
[1741788314145,0.05079049,125.99,125.97,53.29207577]
[1741788314349,0.05079049,125.99,125.96,0.05298742]
[1741788315138,7.98899049,125.99,125.96,0.05298742]
[1741788315342,0.05079049,125.99,125.96,0.05298742]
[1741788316649,0.05079049,125.99,125.97,53.29207577]
[1741788316848,0.05079049,125.99,125.96,0.05298742]
[1741788318243,0.05079049,125.99,125.94,238.26]
[1741788319243,7.9386,125.98,125.94,246.2004]
[1741788319438,7.9386,125.98,125.95,0.05998019]
[1741788319647,0.05079049,125.99,125.95,0.05998019]
[1741788321446,0.05079049,125.99,125.97,7.9388]
[1741788321647,0.05079049,125.99,125.95,48.11998019]
[1741788321847,0.05079049,125.99,125.96,7.9395]
[1741788322041,0.05079049,125.99,125.95,48.11998019]
[1741788322851,0.05079049,125.99,125.97,53.29207577]
[1741788323150,0.05079049,125.99,125.98,7.9384]
[1741788323651,0.05079049,125.99,125.95,48.11998019]
[1741788324053,0.05079049,125.99,125.96,7.9391]
[1741788324352,0.05079049,125.99,125.95,48.11998019]
[1741788324552,0.05079049,125.99,125.98,7.9384]
[1741788325253,0.05079049,125.99,125.97,7.9388]
[1741788325448,0.05079049,125.99,125.95,48.11998019]
[1741788326251,0.05079049,125.99,125.95,0.05998019]
[1741788327750,8.53349049,125.99,125.95,0.05998019]
[1741788328349,7.9385,125.98,125.95,0.05998019]
[1741788328850,8.53349049,125.99,125.95,0.05998019]
[1741788329351,4.33909049,125.99,125.95,0.05998019]
[1741788329557,4.33909049,125.99,125.97,7.9389]
[1741788329754,9.049e-05,125.99,125.98,47.54]
[1741788329945,53.29207577,126.1,126.03,7.9348]
[1741788329946,16.2953,126.08,126.03,7.9348]
[1741788330452,8.3629,126.08,126.03,53.29207577]
[1741788330651,53.29207577,126.16,126.02,238.16]
[1741788330858,8.3629,126.14,126.05,53.29207577]
[1741788331051,0.0547944,126.1,126.08,0.05787776]
[1741788334162,0.0547944,126.1,126.03,100.77207577]
[1741788334361,4.30951182,126.12,126.03,100.77207577]
[1741788334557,7.9306,126.11,126.05,7.9335]
[1741788334863,4.31495711,126.1,126.02,238.16]
[1741788335056,7.9306,126.11,126.03,56.08814448]
[1741788335262,4.31389208,126.1,126.03,109.38022025]
[1741788335463,0.06089271,126.08,126.06,0.05356703]
[1741788335757,8.3629,126.14,126.05,100.89207577]
[1741788335958,4.32183695,126.13,126.06,0.05404116]
[1741788336162,8.3629,126.14,126.06,53.29207577]
[1741788336462,4.32120182,126.13,126.05,47.6]
[1741788336863,7.9318,126.09,126.04,7.9345]
[1741788337063,55.9429,126.14,126.02,339.03207577]
[1741788337264,0.06032367,126.08,126.06,7.9329]
[1741788337454,55.9429,126.14,126.02,339.03207577]
[1741788337660,55.9429,126.14,126.06,0.05706948]
[1741788337661,0.06061849,126.08,126.06,0.05706948]
[1741788337862,7.9313,126.1,126.05,7.9337]
[1741788338063,0.05132342,126.08,126.06,0.05932763]
[1741788338357,7.9304,126.11,126.04,53.29207577]
[1741788338665,0.05378876,126.08,126.06,0.05245402]
[1741788339567,0.05378876,126.08,126.06,7.98545402]
[1741788339767,0.05378876,126.08,126.06,0.05245402]
[1741788340664,4.34034117,126.07,126.0,32.44372641]
[1741788340961,12.59104117,126.06,126.0,32.44372641]
[1741788341164,4.34034117,126.05,125.99,86.51660378]
[1741788341365,57.63241694,126.04,125.97,129.77490567]
[1741788341567,7.9384,125.98,125.97,129.77490567]
[1741788341863,100.85207577,126.01,125.96,571.95173062]
[1741788342069,7.939,125.97,125.96,457.34858356]
[1741788342367,105.22891739,125.97,125.94,233.50187823]
[1741788342569,12.27644162,125.96,125.95,91.30827075]
[1741788342769,12.27684162,125.96,125.94,301.62543658]
[1741788342970,57.62891739,125.95,125.94,301.62543658]
[1741788343265,12.27756533,125.95,125.94,301.62543658]
[1741788343467,12.27736533,125.95,125.94,287.30793658]
[1741788343660,73.5096411,125.95,125.94,274.65183658]
[1741788343860,20.21756533,125.95,125.94,274.65183658]
[1741788344061,4.33736533,125.95,125.94,274.65183658]
[1741788344266,12.27736533,125.95,125.94,245.18123658]
[1741788344468,65.5694411,125.95,125.94,229.33033658]
[1741788344667,73.5096411,125.95,125.94,229.33033658]
[1741788344869,859.12092244,125.95,125.93,0.05277817]
[1741788345068,4.33835788,125.94,125.93,0.05277817]
[1741788345271,854.78256456,125.95,125.93,0.05277817]
[1741788345769,854.78256456,125.95,125.94,7.9409]
[1741788346363,0.05823587,125.96,125.94,7.9409]
[1741788346567,0.05823587,125.96,125.93,0.05277817]
[1741788347165,0.05823587,125.96,125.93,7.99387817]
[1741788347370,0.05823587,125.96,125.93,0.05277817]
[1741788347669,0.05823587,125.96,125.93,7.99407817]
[1741788347868,0.05823587,125.96,125.93,0.05277817]
[1741788348063,4.39949555,125.96,125.93,0.05277817]
[1741788348268,4.34125968,125.95,125.93,0.05277817]
[1741788348463,55.2409,125.94,125.93,0.05277817]
[1741788348663,323.58992029,125.94,125.93,0.05277817]
[1741788348965,323.58902029,125.94,125.85,8.5777]
[1741788349164,4.34125968,125.93,125.85,8.5777]
[1741788349371,264.00776061,125.94,125.9,53.29207577]
[1741788349560,123.61879005,125.94,125.9,92.70656312]
[1741788349760,10.65064238,125.94,125.93,53.29207577]
[1741788349971,0.06005982,125.95,125.93,106.58415154]
[1741788350169,253.36821193,126.0,125.94,285.58]
[1741788350465,59.7397,126.1,126.0,7.9371]
[1741788350466,116.48688403,126.01,126.0,7.9371]
[1741788350661,22.71290383,126.01,126.0,108.68917577]
[1741788350863,22.71290383,126.01,126.0,24.74996348]
[1741788351064,22.71290383,126.01,126.0,78.04203925]
[1741788351569,8.3019,126.1,126.0,78.04203925]
[1741788351870,8.3019,126.1,126.03,61.22717577]
[1741788352060,8.3019,126.1,126.02,238.18]
[1741788352671,0.0550221,126.07,126.05,0.05399285]
[1741788355167,0.0550221,126.07,126.02,238.18]
[1741788355765,7.9335,126.06,126.02,238.18]
[1741788355965,53.34709787,126.07,126.02,238.18]
[1741788356165,57.50179787,126.07,126.03,0.05448626]
[1741788356361,7.9344,126.05,126.03,0.05448626]
[1741788356573,53.29207577,126.05,125.96,238.1]
[1741788356872,47.1,126.04,125.96,238.1]
[1741788357274,53.29207577,126.02,125.96,238.1]
[1741788357476,53.29207577,126.0,125.96,238.1]
[1741788357679,47.13864048,126.0,125.98,5.699e-05]
[1741788357972,53.29207577,125.98,125.9,415.81100315]
[1741788358168,7.9405,125.95,125.9,415.81100315]
[1741788358373,53.29207577,125.98,125.9,415.81100315]
[1741788358563,7.9413,125.94,125.9,368.73100315]
[1741788358769,53.29207577,125.98,125.9,368.73100315]
[1741788359069,0.05449702,125.93,125.91,0.0552513]
[1741788359269,53.29207577,125.94,125.9,368.73100315]
[1741788359474,0.05676946,125.93,125.91,0.05079595]
[1741788360170,7.9421,125.92,125.91,0.05079595]
[1741788360370,0.05676946,125.93,125.84,284.92]
[1741788360571,46.9,125.95,125.84,338.21207577]
[1741788360872,53.29207577,126.0,125.88,53.29207577]
[1741788361076,4.3628,126.01,125.92,53.29207577]
[1741788361273,4.3628,126.01,125.93,285.0]
[1741788361574,0.05701528,125.98,125.95,0.05080908]
[1741788361769,7.99541528,125.98,125.95,0.05080908]
[1741788362075,0.05701528,125.98,125.95,0.05080908]
[1741788362387,53.34909105,125.98,125.96,8.58846128]
[1741788362675,53.34909105,125.98,125.95,0.05080908]
[1741788362874,53.34909105,125.98,125.94,121.4647273]
[1741788363474,7.9394,125.97,125.94,121.4647273]
[1741788363667,7.9394,125.97,125.93,238.14]
[1741788364071,0.05701528,125.98,125.94,0.05444902]
[1741788364672,0.05701528,125.98,125.94,46.77444902]
[1741788364873,53.29207577,126.06,125.94,100.06652479]
[1741788365171,53.29207577,126.02,125.93,238.14]
[1741788365376,100.15207577,126.02,125.93,238.14]
[1741788365979,53.29207577,126.04,125.94,46.78]
[1741788366168,0.05996472,125.99,125.96,0.05528729]
[1741788366470,0.05996472,125.99,125.94,100.07207577]
[1741788366778,0.05996472,125.99,125.96,0.05779049]
[1741788367476,46.66,126.06,125.96,53.34986626]
[1741788367673,99.95207577,126.06,125.95,8.13817861]
[1741788367866,7.9354,126.03,125.98,7.9383]
[1741788368070,99.95207577,126.06,125.95,8.13817861]
[1741788368472,0.05015803,126.02,125.99,0.05046656]
[1741788368873,7.9365,126.01,125.99,0.05046656]
[1741788369072,0.05015803,126.02,125.99,0.05046656]
[1741788369372,7.9371,126.0,125.99,0.05046656]
[1741788369577,99.8822338,126.02,125.93,359.6047273]
[1741788369779,99.83207577,126.02,125.93,359.6047273]
[1741788370178,53.29207577,126.04,125.93,238.14]
[1741788370477,7.9354,126.03,125.93,238.14]
[1741788370674,53.29207577,126.04,125.95,53.29207577]
[1741788370875,0.05341598,125.99,125.98,7.9384]
[1741788371075,46.48,126.05,125.98,7.9384]
[1741788371276,0.05307678,126.0,125.97,0.05912348]
[1741788371477,7.9356,126.03,125.96,46.48]
[1741788371676,0.05095946,126.0,125.97,0.06030597]
[1741788372086,53.29207577,126.06,125.97,0.06030597]
[1741788372375,46.32,126.1,126.0,53.29207577]
[1741788372581,46.32,126.11,126.04,7.9341]
[1741788372778,112.41747577,126.14,126.02,53.29207577]
[1741788372981,112.41747577,126.14,126.09,7.9313]
[1741788372982,7.9293,126.13,126.09,7.9313]
[1741788373178,4.3752,126.14,126.05,46.28]
[1741788373375,0.05878911,126.12,126.1,0.05727336]
[1741788373571,7.9302,126.11,126.1,0.05727336]
[1741788373775,99.61086488,126.12,126.01,244.5365]
[1741788374073,53.29207577,126.1,126.01,244.5365]
[1741788374382,4.2628,126.11,126.05,32.71481851]
[1741788374969,0.05880689,126.09,126.07,6.766e-05]
[1741788375175,61.22417577,126.08,126.07,6.766e-05]
[1741788375681,7.9321,126.08,126.07,6.766e-05]
[1741788377374,0.05880689,126.09,126.07,6.766e-05]
[1741788378081,99.89207577,126.08,126.02,182.16177084]
[1741788378281,53.29207577,126.03,126.02,182.16177084]
[1741788378482,61.22727577,126.03,126.02,182.16177084]
[1741788378676,53.29207577,126.03,126.01,211.14653858]
[1741788379181,7.9358,126.02,126.01,211.1969864]
[1741788379684,7.9358,126.02,126.01,0.05044782]
[1741788380479,7.9358,126.02,126.01,4.782e-05]
[1741788382281,0.05833517,126.03,126.01,4.782e-05]
[1741788382586,46.7,126.13,126.01,46.70004782]
[1741788382787,46.7,126.13,126.01,46.7]
[1741788383281,7.9339,126.06,126.01,46.7]
[1741788383483,53.29207577,126.09,126.01,46.7]
[1741788383783,0.05461028,126.05,126.02,0.06073389]
[1741788384080,50.78,126.12,126.01,46.7]
[1741788384486,50.78,126.12,126.01,99.99207577]
[1741788384686,50.78,126.12,126.05,7.9339]
[1741788384881,50.78,126.12,126.01,99.99207577]
[1741788384882,7.9302,126.11,126.03,238.06]
[1741788385075,0.05278727,126.1,126.07,0.05076424]
[1741788385684,7.9321,126.08,126.07,6.424e-05]
[1741788386873,7.94,126.08,125.97,238.04]
[1741788387076,53.29207577,126.04,125.97,238.04]
[1741788387884,7.9381,125.99,125.97,238.04]
[1741788388085,0.06093245,126.02,125.99,0.05315442]
[1741788388274,53.29207577,126.04,125.99,0.05315442]
[1741788388479,7.9371,126.0,125.99,0.05315442]
[1741788389373,7.9367,126.01,125.99,0.05315442]
[1741788390179,7.9365,126.01,125.99,0.05315442]
[1741788390580,0.05881454,126.02,125.99,0.05315442]
[1741788390779,7.9365,126.01,125.99,0.05315442]
[1741788390983,0.05881454,126.02,125.99,0.05315442]
[1741788391778,7.9371,126.0,125.99,0.05315442]
[1741788392683,0.05881454,126.02,125.99,0.05315442]
[1741788393185,53.35089031,126.02,125.99,0.05315442]
[1741788393382,61.22917577,126.0,125.99,5.442e-05]
[1741788394681,61.23207577,126.0,125.91,242.1207]
[1741788394886,53.29207577,125.96,125.91,238.08]
[1741788395588,7.9434,125.9,125.89,131.618752]
[1741788395991,0.05151977,125.91,125.88,0.05312706]
[1741788396189,7.944,125.89,125.88,0.05312706]
[1741788396389,0.05019432,125.9,125.88,0.05312706]
[1741788397293,0.05019432,125.9,125.88,7.99772706]
[1741788397483,0.05019432,125.9,125.88,0.05312706]
[1741788397683,45.58,125.95,125.88,0.05312706]
[1741788397995,53.29207577,125.98,125.89,283.58]
[1741788398290,8.5339,125.99,125.89,336.87207577]
[1741788398488,8.5339,125.99,125.9,4.1472]
[1741788398789,4.1533,125.99,125.9,4.1472]
[1741788398985,0.05018775,125.96,125.93,0.0559406]
[1741788399681,0.05018775,125.96,125.94,7.9407]
[1741788399886,0.05018775,125.96,125.93,45.4359406]
[1741788400080,4.0794,126.02,125.93,45.4359406]
[1741788400281,4.0794,126.02,125.93,45.38]
[1741788401092,7.9381,125.99,125.93,45.38]
[1741788401396,0.05988836,125.99,125.96,0.05351468]
[1741788402190,7.939,125.97,125.96,0.05351468]
[1741788402390,0.05988836,125.99,125.96,0.05351468]
[1741788402589,7.9384,125.98,125.96,0.05351468]
[1741788402887,0.05988836,125.99,125.96,0.05351468]
[1741788403191,7.939,125.97,125.96,0.05351468]
[1741788403391,0.05988836,125.99,125.96,0.05351468]
[1741788405688,0.05988836,125.99,125.97,238.18]
[1741788405886,0.05988836,125.99,125.98,4.1498]
[1741788406283,53.29207577,126.06,125.99,7.9374]
[1741788406491,57.52697577,126.1,126.0,45.12]
[1741788406788,57.52697577,126.1,126.02,7.9356]
[1741788406994,57.52697577,126.1,126.0,98.41207577]
[1741788407195,57.52697577,126.1,126.0,45.12]
[1741788407696,0.05301879,126.06,126.04,0.05353805]
[1741788408089,7.9339,126.05,126.04,0.05353805]
[1741788409395,0.05301879,126.06,125.98,4.1498]
[1741788409594,45.12,126.07,125.98,12.088]
[1741788409996,45.12,126.07,125.98,4.1498]
[1741788410200,4.2349,126.1,125.99,53.29207577]
[1741788410495,0.05278837,126.04,126.01,0.05857858]
[1741788410689,57.52697577,126.1,126.02,45.12]
[1741788410889,7.9352,126.03,126.02,45.12]
[1741788411094,53.29207577,126.08,125.99,45.12]
[1741788411290,0.05564832,126.04,126.01,0.05876035]
[1741788412090,7.9358,126.02,126.01,0.05876035]
[1741788412286,0.05564832,126.04,126.01,0.05876035]
[1741788413095,7.9357,126.03,126.01,0.05876035]
[1741788413285,0.05564832,126.04,126.01,0.05876035]
[1741788414594,7.9358,126.02,126.01,0.05876035]
[1741788416797,7.9358,126.02,126.01,6.035e-05]
[1741788417895,61.22787577,126.02,126.01,6.035e-05]
[1741788419100,69.16787577,126.02,126.01,6.035e-05]
[1741788420601,61.22787577,126.02,126.01,6.035e-05]
[1741788420894,61.23207577,126.02,125.92,238.12]
[1741788421099,53.29207577,126.02,125.94,7.9404]
[1741788421302,57.57097577,126.02,125.92,238.12]
[1741788421502,53.29207577,126.0,125.92,238.12]
[1741788421803,4.2789,126.02,125.92,238.12]
[1741788422002,0.06022524,125.97,125.95,0.05390275]
[1741788422196,4.2789,126.02,125.95,0.05390275]
[1741788422396,0.05709568,125.97,125.95,0.05390275]
[1741788422598,7.9396,125.96,125.95,0.05390275]
[1741788423605,45.1,125.96,125.9,32.82021576]
[1741788423809,53.29207577,125.95,125.9,32.82021576]
[1741788423995,7.9419,125.93,125.9,32.82021576]
[1741788424197,53.29207577,125.99,125.88,32.82021576]
[1741788424399,53.29207577,125.95,125.88,32.82021576]
[1741788424804,0.05403077,125.93,125.9,0.06058441]
[1741788426508,0.05403077,125.93,125.9,8.00368441]
[1741788426700,0.05403077,125.93,125.9,0.06058441]
[1741788427007,57.23637577,126.01,125.94,7.9409]
[1741788427211,4.2789,126.02,125.95,45.12]
[1741788427404,16.33055008,126.04,125.97,53.29207577]
[1741788427621,16.33055008,126.04,125.98,3.9912]
[1741788427806,53.29207577,126.09,125.99,45.12]
[1741788428208,0.05755902,126.05,126.03,0.05613479]
[1741788428609,0.05849254,126.05,126.03,0.05613479]
[1741788429303,7.99289254,126.05,126.03,0.05613479]
[1741788429502,0.05849254,126.05,126.03,0.05613479]
[1741788429811,7.99269254,126.05,126.03,0.05613479]
[1741788430013,0.05849254,126.05,126.03,0.05613479]
[1741788430513,7.9346,126.04,126.03,0.05613479]
[1741788431205,0.05849254,126.05,126.03,0.05613479]
[1741788432308,7.9346,126.04,126.03,0.05613479]
[1741788433309,0.05849254,126.05,126.03,0.05613479]
[1741788434013,124.0,126.1,126.03,45.15613479]
[1741788434215,124.0,126.1,126.03,45.1]
[1741788434912,124.0,126.1,126.03,98.14914595]
[1741788435109,0.05366745,126.08,126.05,0.05786384]
[1741788435504,7.98606745,126.08,126.05,0.05786384]
[1741788435708,0.05366745,126.08,126.05,0.05786384]
[1741788437314,0.05366745,126.08,126.06,7.9332]
[1741788437514,0.05366745,126.08,126.05,0.05786384]
[1741788437711,0.05366745,126.08,126.07,7.9327]
[1741788438110,57.33554595,126.22,126.09,53.04914595]
[1741788438425,4.2864,126.22,126.1,238.04]
[1741788438718,4.2864,126.22,126.11,45.08]
[1741788438925,3.9764,126.21,126.11,45.08]
[1741788439113,0.05654166,126.18,126.15,0.052352]
[1741788439315,45.08,126.17,126.1,238.04]
[1741788439714,4.2205,126.16,126.1,238.04]
[1741788440020,124.0,126.15,126.1,238.04]
[1741788440213,169.08,126.15,126.1,238.04]
[1741788440415,0.05670944,126.14,126.11,0.057858]
[1741788440616,7.9293,126.13,126.11,0.057858]
[1741788440812,0.05670944,126.14,126.11,0.057858]
[1741788441021,124.0,126.13,126.11,0.057858]
[1741788441621,131.9293,126.13,126.11,0.057858]
[1741788441818,124.0,126.13,126.11,0.057858]
[1741788444226,169.06,126.13,126.05,36.98171576]
[1741788444925,7.9297,126.12,126.07,7.9324]
[1741788445131,169.06,126.13,126.05,36.98171576]
[1741788445424,0.05107745,126.11,126.08,0.05093116]
[1741788445827,7.9308,126.1,126.08,0.05093116]
[1741788446125,53.04914595,126.1,126.05,32.82021576]
[1741788446318,8.2967,126.09,126.05,32.82021576]
[1741788446724,8.2967,126.09,126.04,325.57897827]
[1741788446725,53.3567,126.09,126.04,237.96]
[1741788447025,8.2967,126.09,126.04,237.96]
[1741788447229,0.05822122,126.08,126.05,0.06042572]
[1741788447427,0.05822122,126.08,126.04,291.00914595]
[1741788447726,0.05822122,126.08,126.05,0.05396406]
[1741788448124,0.05822122,126.08,126.07,7.9327]
[1741788448824,0.05822122,126.08,126.05,0.05396406]
[1741788449723,0.05822122,126.08,126.07,7.9327]
[1741788450330,124.0,126.13,126.07,45.04]
[1741788450531,124.0,126.13,126.11,7.9298]
[1741788450832,124.0,126.13,126.07,45.04]
[1741788451030,124.0,126.13,126.06,4.0797]
[1741788451231,124.0,126.13,126.04,336.04914595]
[1741788451427,7.9305,126.11,126.06,7.9328]
[1741788451632,0.05129896,126.1,126.07,0.05242018]
[1741788452031,0.05129896,126.1,126.08,7.9319]
[1741788452626,0.05129896,126.1,126.07,0.05242018]
[1741788453131,0.05129896,126.1,126.09,7.9314]
[1741788453533,0.05129896,126.1,126.07,0.05242018]
[1741788455833,0.05129896,126.1,126.08,7.9317]
[1741788456133,0.05129896,126.1,126.07,0.05242018]
[1741788457839,0.05129896,126.1,126.09,7.9314]
[1741788459335,0.05129896,126.1,126.08,45.04]
[1741788460233,0.27905,126.16,126.08,45.04]
[1741788460733,7.9308,126.1,126.07,7.9324]
[1741788461034,127.9776,126.15,126.06,32.82021576]
[1741788461233,53.4319,126.14,126.06,40.75321576]
[1741788461431,0.05146798,126.12,126.09,0.05441942]
[1741788462029,0.05146798,126.12,126.06,32.82021576]
[1741788462229,7.9307,126.11,126.06,40.75341576]
[1741788462429,0.05146798,126.12,126.06,32.82021576]
[1741788462834,0.05146798,126.12,126.05,120.43919403]
[1741788463236,0.05146798,126.12,126.07,0.05019876]
[1741788463437,7.9317,126.09,126.07,0.05019876]
[1741788463734,0.05256097,126.09,126.07,0.05019876]
[1741788464042,7.9321,126.08,126.07,0.05019876]
[1741788465548,40.55002691,126.08,126.03,25.57245233]
[1741788465748,32.61002691,126.04,126.02,219.36458668]
[1741788465939,7.9352,126.03,126.02,219.36458668]
[1741788466147,77.63002691,126.03,126.01,241.02135965]
[1741788466346,85.57002691,126.03,126.01,241.02135965]
[1741788466642,7.9358,126.02,126.01,228.77558689]
[1741788466850,7.9358,126.02,126.01,2.724e-05]
[1741788467044,15.8758,126.02,126.01,2.724e-05]
[1741788467245,7.9358,126.02,126.01,2.724e-05]
[1741788468550,15.8758,126.02,126.01,2.724e-05]
[1741788468750,7.94,126.02,125.92,8.1801]
[1741788468947,77.63002691,126.03,125.92,8.1801]
[1741788469251,45.02,126.03,125.92,8.1801]
[1741788469447,7.9367,126.01,125.92,8.1801]
[1741788469644,45.02,126.03,125.93,77.65002691]
[1741788469847,7.9361,126.02,125.97,7.9384]
[1741788470049,0.05279798,125.99,125.97,7.98938472]
[1741788470248,43.21741463,126.05,125.97,0.05098472]
[1741788470450,7.935,126.04,125.95,32.61002691]
[1741788470748,10.60738772,126.05,125.95,32.61002691]
[1741788470951,7.9377,126.0,125.96,7.9393]
[1741788471145,45.04,126.02,125.93,45.04]
[1741788471548,0.0579107,125.99,125.96,0.0549532]
[1741788472253,7.9960107,125.99,125.96,0.0549532]
[1741788473047,0.0579107,125.99,125.96,0.0549532]
[1741788473653,7.939,125.97,125.96,0.0549532]
[1741788475356,0.0579107,125.99,125.96,0.0549532]
[1741788475656,0.0579107,125.99,125.94,32.61002691]
[1741788476353,0.0579107,125.99,125.92,40.79012691]
[1741788476554,0.0579107,125.99,125.96,7.9396]
[1741788477057,0.0579107,125.99,125.96,7.9393]
[1741788477360,0.0579107,125.99,125.94,0.05556499]
[1741788477551,0.0579107,125.99,125.97,7.9386]
[1741788477752,0.0579107,125.99,125.92,40.79012691]
[1741788478052,18.54278772,126.03,125.97,0.05266259]
[1741788478254,42.4295509,126.03,125.95,77.65002691]
[1741788478653,50.3649509,126.03,125.99,7.9375]
[1741788478854,42.4295509,126.03,125.95,77.65002691]
[1741788479059,7.9376,126.0,125.95,77.65002691]
[1741788479256,42.4295509,126.03,125.95,77.65002691]
[1741788479463,0.05585422,126.0,125.98,0.05627076]
[1741788482358,42.4295509,126.05,126.01,0.05358466]
[1741788483258,7.9358,126.02,126.01,0.05358466]
[1741788483955,7.9358,126.02,126.01,8.466e-05]
[1741788484754,45.02,126.03,125.95,8.6918]
[1741788484958,45.02,126.03,125.95,16.6317]
[1741788485162,45.02,126.03,125.95,4.35]
[1741788485358,32.61002691,126.02,125.95,4.35]
[1741788485867,7.939,125.98,125.97,0.05665319]
[1741788486663,0.05539955,126.0,125.97,0.05665319]
[1741788489675,7.9384,125.98,125.97,0.05665319]
[1741788492276,85.57002691,125.98,125.86,270.77002691]
[1741788492476,32.61002691,125.95,125.86,246.3825]
[1741788492678,45.02,125.94,125.86,246.3825]
[1741788492871,45.02,125.94,125.86,238.16]